[Event "Late-Titled-Tuesday-Blitz-March-05-2024"]
[Site "Chess.com"]
[Date "2024.03.05"]
[Round "9"]
[White "Walter_White_Poland"]
[Black "Irishchessman16"]
[Result "0-1"]
[WhiteElo "2368"]
[BlackElo "2531"]
[TimeControl "180+1"]
[EndTime "15:40:14 PST"]
[Termination "Irishchessman16 won on time"]

1. e4 {[%clk 0:03:00.9]} 1... g6 {[%clk 0:02:55.2]} 2. d4 {[%clk 0:02:59.8]}
2... Bg7 {[%clk 0:02:56.1]} 3. Nc3 {[%clk 0:02:59.9]} 3... a6 {[%clk 0:02:55.5]}
4. a4 {[%clk 0:02:59.1]} 4... d6 {[%clk 0:02:54.5]} 5. h3 {[%clk 0:02:59.1]}
5... Nf6 {[%clk 0:02:52.8]} 6. Nf3 {[%clk 0:02:55.1]} 6... O-O {[%clk
0:02:53.4]} 7. Be3 {[%clk 0:02:54.8]} 7... Nc6 {[%clk 0:02:50.9]} 8. Be2 {[%clk
0:02:47.4]} 8... e6 {[%clk 0:02:50.9]} 9. O-O {[%clk 0:02:41.9]} 9... b6 {[%clk
0:02:50.8]} 10. e5 {[%clk 0:02:00.4]} 10... Nd5 {[%clk 0:02:49.5]} 11. Nxd5
{[%clk 0:01:57.7]} 11... exd5 {[%clk 0:02:49.3]} 12. Bg5 {[%clk 0:01:56]} 12...
f6 {[%clk 0:02:46]} 13. exf6 {[%clk 0:01:56]} 13... Bxf6 {[%clk 0:02:46]} 14.
Bh6 {[%clk 0:01:47.1]} 14... Bg7 {[%clk 0:02:46]} 15. Bxg7 {[%clk 0:01:44.4]}
15... Kxg7 {[%clk 0:02:46.9]} 16. Qd2 {[%clk 0:01:42.8]} 16... Bf5 {[%clk
0:02:46.6]} 17. c3 {[%clk 0:01:41.1]} 17... Ne7 {[%clk 0:02:43.8]} 18. Rae1
{[%clk 0:01:39.8]} 18... Ng8 {[%clk 0:02:43.9]} 19. g4 {[%clk 0:01:28.6]} 19...
Bd7 {[%clk 0:02:43.2]} 20. Nh2 {[%clk 0:00:43.5]} 20... Qh4 {[%clk 0:02:37.6]}
21. Kg2 {[%clk 0:00:40.8]} 21... Nf6 {[%clk 0:02:36.1]} 22. Bd3 {[%clk
0:00:32.2]} 22... Ne4 {[%clk 0:02:21.8]} 23. Bxe4 {[%clk 0:00:31.1]} 23... dxe4
{[%clk 0:02:22]} 24. d5 {[%clk 0:00:26.9]} 24... Bxa4 {[%clk 0:02:14.2]} 25.
Rxe4 {[%clk 0:00:17.9]} 25... Bd7 {[%clk 0:02:14.8]} 26. f4 {[%clk 0:00:14.7]}
26... Qf6 {[%clk 0:02:09.6]} 27. Rfe1 {[%clk 0:00:13]} 27... Rae8 {[%clk
0:02:08.5]} 28. Nf3 {[%clk 0:00:12.2]} 28... Rxe4 {[%clk 0:02:07.6]} 29. Rxe4
{[%clk 0:00:13.1]} 29... Re8 {[%clk 0:02:07.5]} 30. Qe3 {[%clk 0:00:12.5]} 30...
Rxe4 {[%clk 0:02:04.8]} 31. Qxe4 {[%clk 0:00:13.4]} 31... Qf7 {[%clk 0:01:59.5]}
32. Ng5 {[%clk 0:00:12.4]} 32... Qe8 {[%clk 0:01:59.4]} 33. Qxe8 {[%clk
0:00:11.8]} 33... Bxe8 {[%clk 0:01:59.4]} 34. Kf3 {[%clk 0:00:11.6]} 34... Bf7
{[%clk 0:01:57.5]} 35. Ke4 {[%clk 0:00:11.5]} 35... Bg8 {[%clk 0:01:55.6]} 36.
Kd4 {[%clk 0:00:10.8]} 36... Kf6 {[%clk 0:01:55]} 37. Ne4+ {[%clk 0:00:10.1]}
37... Ke7 {[%clk 0:01:55.1]} 38. Ng5 {[%clk 0:00:09.5]} 38... Kd7 {[%clk
0:01:53]} 39. Ne4 {[%clk 0:00:09.5]} 39... Ke7 {[%clk 0:01:50.6]} 40. Ng5 {[%clk
0:00:09.4]} 40... h6 {[%clk 0:01:50.9]} 41. Ne4 {[%clk 0:00:09.3]} 41... Bf7
{[%clk 0:01:49.4]} 42. Nd2 {[%clk 0:00:07.9]} 42... Kf6 {[%clk 0:01:47.1]} 43.
Ne4+ {[%clk 0:00:07.8]} 43... Ke7 {[%clk 0:01:47.3]} 44. Nd2 {[%clk 0:00:08.3]}
44... Be8 {[%clk 0:01:47.1]} 45. Ne4 {[%clk 0:00:08.2]} 45... Bd7 {[%clk
0:01:47.4]} 46. c4 {[%clk 0:00:08.1]} 46... h5 {[%clk 0:01:46.1]} 47. gxh5
{[%clk 0:00:06.3]} 47... gxh5 {[%clk 0:01:47]} 48. h4 {[%clk 0:00:06.7]} 48...
Bg4 {[%clk 0:01:45.9]} 49. Ng5 {[%clk 0:00:06.2]} 49... Kf6 {[%clk 0:01:45.6]}
50. Ke4 {[%clk 0:00:06.3]} 50... Be2 {[%clk 0:01:44.6]} 51. Ne6 {[%clk
0:00:04.7]} 51... c5 {[%clk 0:01:40.6]} 52. Nc7 {[%clk 0:00:02.6]} 52... Bxc4
{[%clk 0:01:40.4]} 53. Ne8+ {[%clk 0:00:01.4]} 53... Ke7 {[%clk 0:01:40.1]} 54.
Ng7 {[%clk 0:00:01.4]} 54... Be2 {[%clk 0:01:39.6]} 55. Nf5+ {[%clk 0:00:01.6]}
55... Kd7 {[%clk 0:01:39.8]} 56. Ng3 {[%clk 0:00:01.8]} 56... Bg4 {[%clk
0:01:37.4]} 57. f5 {[%clk 0:00:02.1]} 57... a5 {[%clk 0:01:36.7]} 58. Kf4 {[%clk
0:00:01.1]} 58... b5 {[%clk 0:01:35.8]} 0-1

[Event "Late-Titled-Tuesday-Blitz-March-05-2024"]
[Site "Chess.com"]
[Date "2024.03.05"]
[Round "9"]
[White "Bykov_Egor"]
[Black "Fandorine"]
[Result "1-0"]
[WhiteElo "2632"]
[BlackElo "2897"]
[TimeControl "180+1"]
[EndTime "15:40:15 PST"]
[Termination "Bykov_Egor won by resignation"]

1. e4 {[%clk 0:03:00.9]} 1... e5 {[%clk 0:02:57.4]} 2. Nf3 {[%clk 0:03:01.2]}
2... Nc6 {[%clk 0:02:58.1]} 3. Bc4 {[%clk 0:03:01.3]} 3... Nf6 {[%clk
0:02:57.9]} 4. Ng5 {[%clk 0:03:00.9]} 4... d5 {[%clk 0:02:58]} 5. exd5 {[%clk
0:03:01.8]} 5... b5 {[%clk 0:02:58.5]} 6. Bf1 {[%clk 0:03:01.4]} 6... Nxd5
{[%clk 0:02:58.2]} 7. Bxb5 {[%clk 0:02:33.6]} 7... Bb7 {[%clk 0:02:57.9]} 8. d4
{[%clk 0:02:26.5]} 8... Be7 {[%clk 0:02:19.7]} 9. dxe5 {[%clk 0:02:09.5]} 9...
Bxg5 {[%clk 0:02:14.9]} 10. Bxg5 {[%clk 0:02:08.9]} 10... Qxg5 {[%clk
0:02:15.8]} 11. Qxd5 {[%clk 0:02:08.7]} 11... O-O {[%clk 0:02:16.7]} 12. O-O
{[%clk 0:01:50.3]} 12... Nd8 {[%clk 0:01:41.6]} 13. f4 {[%clk 0:01:49.2]} 13...
Qg4 {[%clk 0:01:38.7]} 14. Qd2 {[%clk 0:01:44]} 14... Ne6 {[%clk 0:01:39.3]} 15.
Qe2 {[%clk 0:01:37.1]} 15... Qh4 {[%clk 0:01:36.4]} 16. Qf2 {[%clk 0:01:29.6]}
16... Qh6 {[%clk 0:01:23.3]} 17. Nc3 {[%clk 0:01:23.2]} 17... Kh8 {[%clk
0:01:16.7]} 18. f5 {[%clk 0:01:17.3]} 18... Ng5 {[%clk 0:01:14.8]} 19. Bd3
{[%clk 0:01:12.2]} 19... Rae8 {[%clk 0:00:59.6]} 20. h4 {[%clk 0:01:01.8]} 20...
Nh3+ {[%clk 0:00:20.8]} 21. gxh3 {[%clk 0:01:00.6]} 21... Rxe5 {[%clk
0:00:21.7]} 22. Rae1 {[%clk 0:00:56.7]} 22... f6 {[%clk 0:00:18.6]} 23. Rxe5
{[%clk 0:00:50.3]} 23... fxe5 {[%clk 0:00:19.5]} 24. Be4 {[%clk 0:00:49.2]}
24... Bc8 {[%clk 0:00:18.3]} 25. Qg3 {[%clk 0:00:46.9]} 25... Qb6+ {[%clk
0:00:16.7]} 26. Kh2 {[%clk 0:00:43]} 26... Qxb2 {[%clk 0:00:14]} 27. Qxe5 {[%clk
0:00:42.5]} 27... Qb4 {[%clk 0:00:07.5]} 28. Rg1 {[%clk 0:00:39.7]} 28... Rf6
{[%clk 0:00:02.7]} 29. Nd5 {[%clk 0:00:33.3]} 29... Qd2+ {[%clk 0:00:01.8]} 30.
Rg2 {[%clk 0:00:33.2]} 1-0

[Event "Late-Titled-Tuesday-Blitz-March-05-2024"]
[Site "Chess.com"]
[Date "2024.03.05"]
[Round "9"]
[White "bancsoo"]
[Black "mac0504"]
[Result "1-0"]
[WhiteElo "2887"]
[BlackElo "2720"]
[TimeControl "180+1"]
[EndTime "15:40:19 PST"]
[Termination "bancsoo won on time"]

1. Nf3 {[%clk 0:03:00.9]} 1... Nf6 {[%clk 0:03:00.2]} 2. d4 {[%clk 0:03:01.3]}
2... g6 {[%clk 0:03:00.6]} 3. g3 {[%clk 0:03:01.7]} 3... Bg7 {[%clk 0:03:01.1]}
4. Bg2 {[%clk 0:03:02.5]} 4... O-O {[%clk 0:03:01.8]} 5. O-O {[%clk 0:03:03.2]}
5... d6 {[%clk 0:03:02.6]} 6. c4 {[%clk 0:03:03.4]} 6... Nc6 {[%clk 0:03:03.2]}
7. Nc3 {[%clk 0:03:03.4]} 7... Bg4 {[%clk 0:03:03.5]} 8. d5 {[%clk 0:03:02.4]}
8... Bxf3 {[%clk 0:03:03.3]} 9. exf3 {[%clk 0:03:02.2]} 9... Na5 {[%clk
0:03:04.1]} 10. b3 {[%clk 0:02:52.6]} 10... c5 {[%clk 0:03:04.3]} 11. Bb2 {[%clk
0:02:44.5]} 11... a6 {[%clk 0:03:01.2]} 12. f4 {[%clk 0:02:38.5]} 12... Rb8
{[%clk 0:02:58.5]} 13. a4 {[%clk 0:02:29.3]} 13... Qb6 {[%clk 0:02:49.8]} 14.
Ra3 {[%clk 0:02:29.3]} 14... Rfe8 {[%clk 0:02:44]} 15. Qc2 {[%clk 0:02:26.9]}
15... e6 {[%clk 0:02:28.3]} 16. dxe6 {[%clk 0:02:26.7]} 16... Rxe6 {[%clk
0:02:27.5]} 17. Nd5 {[%clk 0:02:11.1]} 17... Nxd5 {[%clk 0:02:26.3]} 18. Bxd5
{[%clk 0:02:06.9]} 18... Re7 {[%clk 0:02:22.6]} 19. Bxg7 {[%clk 0:01:59.2]}
19... Kxg7 {[%clk 0:02:23.5]} 20. Qc3+ {[%clk 0:01:59.8]} 20... f6 {[%clk
0:02:23.8]} 21. Raa1 {[%clk 0:01:57.2]} 21... Qb4 {[%clk 0:02:12.4]} 22. Qxb4
{[%clk 0:01:49.4]} 22... cxb4 {[%clk 0:02:13.3]} 23. Rab1 {[%clk 0:01:50]} 23...
Rbe8 {[%clk 0:01:54.1]} 24. Bf3 {[%clk 0:01:44.5]} 24... b5 {[%clk 0:00:58.6]}
25. cxb5 {[%clk 0:01:39.4]} 25... axb5 {[%clk 0:00:59]} 26. axb5 {[%clk
0:01:39.2]} 26... Rb8 {[%clk 0:00:47.3]} 27. Rfd1 {[%clk 0:01:39.2]} 27... Rxb5
{[%clk 0:00:39.1]} 28. Rxd6 {[%clk 0:01:38.8]} 28... Rc5 {[%clk 0:00:33.4]} 29.
Bd5 {[%clk 0:01:27.7]} 29... Rc2 {[%clk 0:00:14]} 30. Ra6 {[%clk 0:01:15.4]}
30... Rc5 {[%clk 0:00:05.5]} 31. Rd6 {[%clk 0:01:09.1]} 31... Rc2 {[%clk
0:00:05.6]} 32. Ra1 {[%clk 0:01:09.1]} 32... Rc5 {[%clk 0:00:03.2]} 33. Kg2
{[%clk 0:01:05.5]} 33... f5 {[%clk 0:00:01.5]} 34. h4 {[%clk 0:01:03.4]} 34...
Re2 {[%clk 0:00:01.2]} 35. h5 {[%clk 0:00:50.2]} 35... Rcc2 {[%clk 0:00:01.1]}
36. Rxa5 {[%clk 0:00:48.1]} 36... Rxf2+ {[%clk 0:00:01.1]} 37. Kg1 {[%clk
0:00:48.2]} 37... Rfd2 {[%clk 0:00:01.3]} 38. Ra1 {[%clk 0:00:45.2]} 1-0

[Event "Late-Titled-Tuesday-Blitz-March-05-2024"]
[Site "Chess.com"]
[Date "2024.03.05"]
[Round "9"]
[White "chess94cu"]
[Black "thesupera12"]
[Result "1-0"]
[WhiteElo "2636"]
[BlackElo "2476"]
[TimeControl "180+1"]
[EndTime "15:40:19 PST"]
[Termination "chess94cu won by resignation"]

1. Nf3 {[%clk 0:03:00.9]} 1... Nf6 {[%clk 0:02:54.9]} 2. c4 {[%clk 0:03:00.9]}
2... d5 {[%clk 0:02:53.6]} 3. d4 {[%clk 0:03:00.6]} 3... g6 {[%clk 0:02:52.1]}
4. cxd5 {[%clk 0:02:58.4]} 4... Nxd5 {[%clk 0:02:51.1]} 5. e4 {[%clk 0:02:58.3]}
5... Nb6 {[%clk 0:02:51.2]} 6. Nc3 {[%clk 0:02:58.6]} 6... Bg7 {[%clk
0:02:51.6]} 7. Be2 {[%clk 0:02:58.2]} 7... O-O {[%clk 0:02:52]} 8. O-O {[%clk
0:02:58.4]} 8... Bg4 {[%clk 0:02:51.3]} 9. Be3 {[%clk 0:02:58.3]} 9... Nc6
{[%clk 0:02:50]} 10. d5 {[%clk 0:02:57.9]} 10... Ne5 {[%clk 0:02:49.8]} 11. Nxe5
{[%clk 0:02:53.4]} 11... Bxe2 {[%clk 0:02:50.7]} 12. Qxe2 {[%clk 0:02:54]} 12...
Bxe5 {[%clk 0:02:48.6]} 13. f4 {[%clk 0:02:54.6]} 13... Bg7 {[%clk 0:02:45.8]}
14. Rfd1 {[%clk 0:02:52.2]} 14... Qc8 {[%clk 0:02:45]} 15. Rac1 {[%clk 0:02:52]}
15... c6 {[%clk 0:02:42.7]} 16. e5 {[%clk 0:02:43.4]} 16... Rd8 {[%clk
0:02:28.3]} 17. a4 {[%clk 0:02:35.8]} 17... cxd5 {[%clk 0:02:11.7]} 18. a5
{[%clk 0:02:04.3]} 18... d4 {[%clk 0:01:57.1]} 19. axb6 {[%clk 0:01:46.2]} 19...
dxe3 {[%clk 0:01:54.8]} 20. Nd5 {[%clk 0:01:45.2]} 20... Qe6 {[%clk 0:01:41.1]}
21. Nc7 {[%clk 0:01:44.5]} 21... Qxb6 {[%clk 0:01:41]} 22. Nxa8 {[%clk
0:01:43.5]} 22... Rxa8 {[%clk 0:01:41.9]} 23. Rc3 {[%clk 0:01:40.7]} 23... g5
{[%clk 0:01:38.8]} 24. Qxe3 {[%clk 0:01:23.5]} 24... Qxb2 {[%clk 0:01:35.3]} 25.
fxg5 {[%clk 0:01:23.4]} 25... Qb5 {[%clk 0:01:33.2]} 26. Rc5 {[%clk 0:01:22.1]}
26... Qa4 {[%clk 0:01:31.8]} 27. Rcd5 {[%clk 0:01:20.8]} 27... Qg4 {[%clk
0:01:28.8]} 28. h3 {[%clk 0:01:18]} 28... Qe6 {[%clk 0:01:28]} 29. Rd8+ {[%clk
0:00:53.8]} 29... Rxd8 {[%clk 0:01:26]} 30. Rxd8+ {[%clk 0:00:54.7]} 30... Bf8
{[%clk 0:01:26.9]} 31. Qxa7 {[%clk 0:00:42.1]} 31... Qxe5 {[%clk 0:01:25.8]} 32.
Qb8 {[%clk 0:00:42.8]} 32... Qxb8 {[%clk 0:01:19.3]} 33. Rxb8 {[%clk 0:00:43.7]}
33... e6 {[%clk 0:01:19.5]} 34. Rxb7 {[%clk 0:00:43.9]} 34... Kg7 {[%clk
0:01:19.6]} 35. Kf2 {[%clk 0:00:43.7]} 35... Bd6 {[%clk 0:01:16]} 36. Kf3 {[%clk
0:00:43.8]} 36... Kg6 {[%clk 0:01:14.5]} 37. Kg4 {[%clk 0:00:44.4]} 37... Bf8
{[%clk 0:01:05.6]} 38. h4 {[%clk 0:00:44]} 38... h5+ {[%clk 0:01:05.5]} 39. gxh6
{[%clk 0:00:39]} 39... Bxh6 {[%clk 0:01:06]} 40. Rb6 {[%clk 0:00:35.6]} 40...
f5+ {[%clk 0:01:05.7]} 41. Kf3 {[%clk 0:00:35.9]} 41... Kf6 {[%clk 0:01:05]} 42.
g4 {[%clk 0:00:36.5]} 42... fxg4+ {[%clk 0:01:04.6]} 43. Kxg4 {[%clk 0:00:37.4]}
43... Ke5 {[%clk 0:01:03.2]} 44. Kh5 {[%clk 0:00:36.4]} 44... Bg7 {[%clk
0:01:02.7]} 45. Kg6 {[%clk 0:00:36.9]} 45... Bf8 {[%clk 0:01:02.6]} 46. h5
{[%clk 0:00:35.2]} 46... Kd5 {[%clk 0:01:03]} 47. Rb8 {[%clk 0:00:34.2]} 47...
Bc5 {[%clk 0:00:56.3]} 48. Rb5 {[%clk 0:00:33]} 48... Kc4 {[%clk 0:00:55.9]} 49.
Rxc5+ {[%clk 0:00:33.6]} 1-0

[Event "Late-Titled-Tuesday-Blitz-March-05-2024"]
[Site "Chess.com"]
[Date "2024.03.05"]
[Round "9"]
[White "SergioMoralesG"]
[Black "kalxandria"]
[Result "1-0"]
[WhiteElo "2449"]
[BlackElo "2171"]
[TimeControl "180+1"]
[EndTime "15:40:24 PST"]
[Termination "SergioMoralesG won on time"]

1. d4 {[%clk 0:03:00.9]} 1... Nf6 {[%clk 0:02:58.9]} 2. c4 {[%clk 0:02:59.9]}
2... g6 {[%clk 0:02:58]} 3. Nc3 {[%clk 0:03:00.5]} 3... Bg7 {[%clk 0:02:57]} 4.
e4 {[%clk 0:03:01]} 4... d6 {[%clk 0:02:56.4]} 5. Nf3 {[%clk 0:03:01.7]} 5...
O-O {[%clk 0:02:55.3]} 6. Be2 {[%clk 0:03:02.4]} 6... e5 {[%clk 0:02:53.3]} 7.
Be3 {[%clk 0:03:03.1]} 7... Nbd7 {[%clk 0:02:47.2]} 8. O-O {[%clk 0:03:02]} 8...
c6 {[%clk 0:02:43.1]} 9. b4 {[%clk 0:02:58]} 9... Re8 {[%clk 0:02:30]} 10. dxe5
{[%clk 0:02:52.4]} 10... dxe5 {[%clk 0:02:27.9]} 11. c5 {[%clk 0:02:51.6]} 11...
Qc7 {[%clk 0:02:25.7]} 12. Nd2 {[%clk 0:02:49.9]} 12... Nf8 {[%clk 0:02:24]} 13.
Nc4 {[%clk 0:02:48.9]} 13... Ne6 {[%clk 0:02:22.9]} 14. Qd6 {[%clk 0:02:41.8]}
14... Bd7 {[%clk 0:02:03.2]} 15. Qxc7 {[%clk 0:02:33.1]} 15... Nxc7 {[%clk
0:02:02]} 16. Nd6 {[%clk 0:02:34]} 16... Re7 {[%clk 0:01:39.2]} 17. Nxb7 {[%clk
0:02:29.7]} 17... Rb8 {[%clk 0:01:36.8]} 18. Na5 {[%clk 0:02:09.8]} 18... Rxb4
{[%clk 0:01:33.6]} 19. Rab1 {[%clk 0:02:10.1]} 19... Rxb1 {[%clk 0:01:15.8]} 20.
Rxb1 {[%clk 0:02:09]} 20... Re8 {[%clk 0:00:46.5]} 21. Rb7 {[%clk 0:02:06]}
21... Ne6 {[%clk 0:00:42.1]} 22. Rxa7 {[%clk 0:02:02.3]} 22... Nd4 {[%clk
0:00:40.8]} 23. Bc4 {[%clk 0:01:55.2]} 23... Be6 {[%clk 0:00:37]} 24. Bxe6
{[%clk 0:01:48.3]} 24... Rxe6 {[%clk 0:00:33.7]} 25. Nc4 {[%clk 0:01:43.7]}
25... Ne8 {[%clk 0:00:17.5]} 26. a4 {[%clk 0:01:38.4]} 26... Bf8 {[%clk
0:00:17.2]} 27. Ra5 {[%clk 0:00:37.3]} 27... Kg7 {[%clk 0:00:14.4]} 28. f4
{[%clk 0:00:29.7]} 28... exf4 {[%clk 0:00:13.3]} 29. Bxd4+ {[%clk 0:00:29.5]}
29... f6 {[%clk 0:00:12]} 30. Ra7+ {[%clk 0:00:28.8]} 30... Kh6 {[%clk
0:00:11.6]} 31. a5 {[%clk 0:00:28.9]} 31... f5 {[%clk 0:00:05.4]} 32. e5 {[%clk
0:00:27.7]} 32... Bg7 {[%clk 0:00:04.5]} 33. a6 {[%clk 0:00:27.4]} 1-0

[Event "Late-Titled-Tuesday-Blitz-March-05-2024"]
[Site "Chess.com"]
[Date "2024.03.05"]
[Round "9"]
[White "TokChess"]
[Black "giomar27"]
[Result "0-1"]
[WhiteElo "2528"]
[BlackElo "2438"]
[TimeControl "180+1"]
[EndTime "15:40:25 PST"]
[Termination "giomar27 won on time"]

1. c4 {[%clk 0:03:00.9]} 1... d6 {[%clk 0:02:59.6]} 2. b3 {[%clk 0:03:01.8]}
2... e5 {[%clk 0:02:57.3]} 3. Bb2 {[%clk 0:03:02.2]} 3... f5 {[%clk 0:02:56.5]}
4. e3 {[%clk 0:03:02.5]} 4... g6 {[%clk 0:02:56.4]} 5. d4 {[%clk 0:03:02]} 5...
e4 {[%clk 0:02:55.7]} 6. d5 {[%clk 0:03:02.1]} 6... Nf6 {[%clk 0:02:54.6]} 7.
Nc3 {[%clk 0:02:56.9]} 7... Bg7 {[%clk 0:02:54.4]} 8. Nge2 {[%clk 0:02:55.2]}
8... O-O {[%clk 0:02:54.4]} 9. Nd4 {[%clk 0:02:55.5]} 9... a5 {[%clk 0:02:51.8]}
10. a3 {[%clk 0:02:54.2]} 10... Na6 {[%clk 0:02:51.4]} 11. Qc2 {[%clk
0:02:53.7]} 11... Bd7 {[%clk 0:02:50.3]} 12. Rd1 {[%clk 0:02:54.2]} 12... Qe7
{[%clk 0:02:50.1]} 13. Be2 {[%clk 0:02:53.8]} 13... h5 {[%clk 0:02:43.2]} 14. h4
{[%clk 0:02:51.4]} 14... Ng4 {[%clk 0:02:42.8]} 15. g3 {[%clk 0:02:48.5]} 15...
Ne5 {[%clk 0:02:42.3]} 16. Kd2 {[%clk 0:02:26]} 16... Nc5 {[%clk 0:02:41.7]} 17.
Kc1 {[%clk 0:02:24.7]} 17... Ncd3+ {[%clk 0:02:37.2]} 18. Bxd3 {[%clk 0:02:25]}
18... Nxd3+ {[%clk 0:02:33.3]} 19. Rxd3 {[%clk 0:02:25.9]} 19... exd3 {[%clk
0:02:33.3]} 20. Qxd3 {[%clk 0:02:25.5]} 20... Rae8 {[%clk 0:02:16.6]} 21. Rd1
{[%clk 0:02:21.5]} 21... c6 {[%clk 0:02:14.3]} 22. dxc6 {[%clk 0:02:12.7]} 22...
bxc6 {[%clk 0:02:15.2]} 23. Nce2 {[%clk 0:02:09.5]} 23... Rb8 {[%clk 0:02:10.9]}
24. Nf4 {[%clk 0:02:02.1]} 24... Qf6 {[%clk 0:02:09.2]} 25. Rd2 {[%clk
0:01:55.2]} 25... Qf7 {[%clk 0:02:06.4]} 26. Nf3 {[%clk 0:01:36]} 26... Bxb2+
{[%clk 0:01:56.9]} 27. Rxb2 {[%clk 0:01:36.9]} 27... Qf6 {[%clk 0:01:53]} 28.
Qd4 {[%clk 0:01:29.9]} 28... Qxd4 {[%clk 0:01:51]} 29. Nxd4 {[%clk 0:01:30.8]}
29... Kf7 {[%clk 0:01:48.5]} 30. Kc2 {[%clk 0:01:27.7]} 30... c5 {[%clk
0:01:47.5]} 31. Nde2 {[%clk 0:01:20.7]} 31... Bc6 {[%clk 0:01:47.3]} 32. a4
{[%clk 0:01:18.8]} 32... Be4+ {[%clk 0:01:46.1]} 33. Kc3 {[%clk 0:01:18.5]}
33... Rb4 {[%clk 0:01:44.2]} 34. Rd2 {[%clk 0:01:11.8]} 34... Rfb8 {[%clk
0:01:43.2]} 35. Nc1 {[%clk 0:01:12.2]} 35... R4b6 {[%clk 0:01:40.7]} 36. Nh3
{[%clk 0:01:03.1]} 36... Kf6 {[%clk 0:01:35.2]} 37. Ng5 {[%clk 0:01:00.6]} 37...
Ba8 {[%clk 0:01:22.8]} 38. Rd1 {[%clk 0:00:55.8]} 38... Ke5 {[%clk 0:01:18.1]}
39. Nf7+ {[%clk 0:00:47.7]} 39... Ke6 {[%clk 0:01:17.4]} 40. Ng5+ {[%clk
0:00:47.2]} 40... Kf6 {[%clk 0:01:17.6]} 41. Rd3 {[%clk 0:00:44.4]} 41... Rd8
{[%clk 0:01:11.2]} 42. Nh7+ {[%clk 0:00:11.3]} 42... Ke7 {[%clk 0:01:08.4]} 43.
Ne2 {[%clk 0:00:07]} 43... d5 {[%clk 0:01:06.9]} 44. Nf4 {[%clk 0:00:02.4]}
44... d4+ {[%clk 0:01:02.8]} 45. exd4 {[%clk 0:00:01.7]} 45... cxd4+ {[%clk
0:01:02.4]} 46. Kd2 {[%clk 0:00:01.1]} 46... Be4 {[%clk 0:01:00.7]} 0-1

[Event "Late-Titled-Tuesday-Blitz-March-05-2024"]
[Site "Chess.com"]
[Date "2024.03.05"]
[Round "9"]
[White "BeanScreen"]
[Black "MathiasWomacka"]
[Result "1-0"]
[WhiteElo "2713"]
[BlackElo "2548"]
[TimeControl "180+1"]
[EndTime "15:40:26 PST"]
[Termination "BeanScreen won by resignation"]

1. e4 {[%clk 0:03:00.9]} 1... c5 {[%clk 0:02:59.8]} 2. c3 {[%clk 0:03:00.7]}
2... d5 {[%clk 0:02:59.4]} 3. exd5 {[%clk 0:03:00.7]} 3... Qxd5 {[%clk
0:02:59.7]} 4. d4 {[%clk 0:03:01]} 4... Nf6 {[%clk 0:02:59.1]} 5. Nf3 {[%clk
0:03:00.2]} 5... e6 {[%clk 0:02:59.7]} 6. Na3 {[%clk 0:02:59.7]} 6... Nc6 {[%clk
0:02:57.4]} 7. Be3 {[%clk 0:02:58.2]} 7... cxd4 {[%clk 0:02:50.9]} 8. Nb5 {[%clk
0:02:58.2]} 8... Qd7 {[%clk 0:02:51.3]} 9. Nbxd4 {[%clk 0:02:57.3]} 9... Nd5
{[%clk 0:02:50]} 10. Nxc6 {[%clk 0:02:44.6]} 10... bxc6 {[%clk 0:02:50.9]} 11.
Bd2 {[%clk 0:02:44.6]} 11... Bd6 {[%clk 0:02:42.9]} 12. c4 {[%clk 0:02:39.6]}
12... Nf4 {[%clk 0:02:40.1]} 13. Qc2 {[%clk 0:02:28.6]} 13... O-O {[%clk
0:02:28.2]} 14. O-O-O {[%clk 0:02:27.7]} 14... Qc7 {[%clk 0:02:26.6]} 15. c5
{[%clk 0:02:24.5]} 15... Be7 {[%clk 0:02:23.8]} 16. Bc3 {[%clk 0:02:08.8]} 16...
f6 {[%clk 0:02:10.8]} 17. h4 {[%clk 0:01:55]} 17... e5 {[%clk 0:01:59.6]} 18.
Bc4+ {[%clk 0:01:44.5]} 18... Be6 {[%clk 0:01:52.5]} 19. Bxe6+ {[%clk
0:01:39.7]} 19... Nxe6 {[%clk 0:01:53.4]} 20. Qb3 {[%clk 0:01:38.5]} 20... Qc8
{[%clk 0:01:51.8]} 21. h5 {[%clk 0:01:22.3]} 21... Rf7 {[%clk 0:01:31]} 22. h6
{[%clk 0:01:16.9]} 22... g6 {[%clk 0:01:29.9]} 23. Qc4 {[%clk 0:00:54]} 23...
Nxc5 {[%clk 0:01:28.9]} 24. Bb4 {[%clk 0:00:43.5]} 24... Qe6 {[%clk 0:01:25.6]}
25. Qxe6 {[%clk 0:00:31]} 25... Nxe6 {[%clk 0:01:26.5]} 26. Bxe7 {[%clk
0:00:31]} 26... Rxe7 {[%clk 0:01:26.7]} 27. Rd6 {[%clk 0:00:31.2]} 27... Rc8
{[%clk 0:01:22.1]} 28. Rhd1 {[%clk 0:00:30.5]} 28... Kf7 {[%clk 0:01:21.3]} 29.
Nd2 {[%clk 0:00:25.6]} 29... g5 {[%clk 0:01:07.2]} 30. Nc4 {[%clk 0:00:24.5]}
30... Kg6 {[%clk 0:01:06]} 31. Rd7 {[%clk 0:00:20.6]} 31... Rc7 {[%clk 0:01:05]}
32. Rxe7 {[%clk 0:00:18.4]} 32... Rxe7 {[%clk 0:01:04.6]} 33. Rd6 {[%clk
0:00:19.3]} 33... Nd4 {[%clk 0:01:04.2]} 34. Ne3 {[%clk 0:00:18]} 34... Kxh6
{[%clk 0:01:00.4]} 35. Rxd4 {[%clk 0:00:17.5]} 35... exd4 {[%clk 0:00:50.1]} 36.
Nf5+ {[%clk 0:00:17.7]} 36... Kh5 {[%clk 0:00:50.9]} 37. Nxe7 {[%clk 0:00:18.6]}
37... Kg4 {[%clk 0:00:50.4]} 38. Nxc6 {[%clk 0:00:18.5]} 38... h5 {[%clk
0:00:47.1]} 39. Nxd4 {[%clk 0:00:18.3]} 39... h4 {[%clk 0:00:47.3]} 40. Kd2
{[%clk 0:00:18.2]} 40... h3 {[%clk 0:00:45.7]} 41. gxh3+ {[%clk 0:00:18]} 41...
Kxh3 {[%clk 0:00:46.6]} 42. b4 {[%clk 0:00:18.1]} 42... Kg2 {[%clk 0:00:46]} 43.
Ke2 {[%clk 0:00:18.3]} 43... g4 {[%clk 0:00:46]} 44. a4 {[%clk 0:00:18.4]} 44...
g3 {[%clk 0:00:45.7]} 45. fxg3 {[%clk 0:00:18.3]} 45... Kxg3 {[%clk 0:00:45.7]}
46. Ke3 {[%clk 0:00:18.9]} 46... Kg4 {[%clk 0:00:45.4]} 47. Ke4 {[%clk
0:00:19.2]} 47... f5+ {[%clk 0:00:45.7]} 48. Nxf5 {[%clk 0:00:18.9]} 1-0